{"text_format":"3","workbook":"xlsx","n_sheets":1,"sheets":["Кръвно налягане и захар"],"not_rendered":{"defined_names":9},"read":"whole","date_system":"1900"}

{"sheet":"Кръвно налягане и захар","index":0,"n_rows":13,"n_cols":11,"rows_kept":13,"merged":[[0,1,4,3],[0,4,0,9],[1,4,1,6],[1,7,1,9]]}
[null,"Проследяване на кръвното налягане и захарта",null,null,"Персонализирайте стойностите на нивата в клетките от E2 до J5, по-долу."]
[{"$nulls":4},"КРЪВНО НАЛЯГАНЕ",null,null,"НИВО НА КРЪВНАТА ЗАХАР"]
[{"$nulls":4},120,"СИСТОЛИЧНО",140,70,100,150]
[{"$nulls":4},80,"ДИАСТОЛИЧНО",90,"НИСКА","НОРМАЛНА","ВИСОКА"]
[{"$nulls":4},"ЦЕЛЕВО НАЛЯГАНЕ",null,"ОБАДЕТЕ СЕ НА ЛЕКАРЯ"]
[null,"Дата","Час","Събитие","Систолично","Диастолично","Пулс","Кръвна захар","Ниво","Състояние","Бележки"]
[null,{"$f":"TODAY()","v":"2022-08-03"},"06:00:00","Събуждане",129,79,72,55,{"$f":"КръвноНаляганеИЗахар[[#This Row],[Кръвна захар]]","v":55},{"$f":"IFERROR(IF(КръвноНаляганеИЗахар[[#This Row],[Ниво]]=0,\"\",IF(КръвноНаляганеИЗахар[[#This Row],[Ниво]]<=ГНиска,\"Ниска\",IF(AND(КръвноНаляганеИЗахар[[#This Row],[Ниво]]>ГНиска,КръвноНаляганеИЗахар[[#This Row],[Ниво]]<ГВисока),\"Нормална\",\"Висока\"))), \"\")","v":"Ниска"}]
[null,{"$f":"TODAY()","v":"2022-08-03"},"07:00:00","Преди ядене",120,80,74,70,{"$f":"КръвноНаляганеИЗахар[[#This Row],[Кръвна захар]]","v":70},{"$f":"IFERROR(IF(КръвноНаляганеИЗахар[[#This Row],[Ниво]]=0,\"\",IF(КръвноНаляганеИЗахар[[#This Row],[Ниво]]<=ГНиска,\"Ниска\",IF(AND(КръвноНаляганеИЗахар[[#This Row],[Ниво]]>ГНиска,КръвноНаляганеИЗахар[[#This Row],[Ниво]]<ГВисока),\"Нормална\",\"Висока\"))), \"\")","v":"Ниска"}]
[null,"2022-08-03","09:00:00","След ядене",133,80,75,75,{"$f":"КръвноНаляганеИЗахар[[#This Row],[Кръвна захар]]","v":75},{"$f":"IFERROR(IF(КръвноНаляганеИЗахар[[#This Row],[Ниво]]=0,\"\",IF(КръвноНаляганеИЗахар[[#This Row],[Ниво]]<=ГНиска,\"Ниска\",IF(AND(КръвноНаляганеИЗахар[[#This Row],[Ниво]]>ГНиска,КръвноНаляганеИЗахар[[#This Row],[Ниво]]<ГВисока),\"Нормална\",\"Висока\"))), \"\")","v":"Нормална"}]
[null,"2022-08-03","10:00:00","Само КН",143,91,75,190,{"$f":"КръвноНаляганеИЗахар[[#This Row],[Кръвна захар]]","v":190},{"$f":"IFERROR(IF(КръвноНаляганеИЗахар[[#This Row],[Ниво]]=0,\"\",IF(КръвноНаляганеИЗахар[[#This Row],[Ниво]]<=ГНиска,\"Ниска\",IF(AND(КръвноНаляганеИЗахар[[#This Row],[Ниво]]>ГНиска,КръвноНаляганеИЗахар[[#This Row],[Ниво]]<ГВисока),\"Нормална\",\"Висока\"))), \"\")","v":"Висока"}]
[null,"2022-08-03","12:00:00","Преди ядене",141,84,70,140,{"$f":"КръвноНаляганеИЗахар[[#This Row],[Кръвна захар]]","v":140},{"$f":"IFERROR(IF(КръвноНаляганеИЗахар[[#This Row],[Ниво]]=0,\"\",IF(КръвноНаляганеИЗахар[[#This Row],[Ниво]]<=ГНиска,\"Ниска\",IF(AND(КръвноНаляганеИЗахар[[#This Row],[Ниво]]>ГНиска,КръвноНаляганеИЗахар[[#This Row],[Ниво]]<ГВисока),\"Нормална\",\"Висока\"))), \"\")","v":"Нормална"}]
[null,{"$f":"TODAY()","v":"2022-08-03"},"15:00:00","След ядене",132,80,68,90,{"$f":"КръвноНаляганеИЗахар[[#This Row],[Кръвна захар]]","v":90},{"$f":"IFERROR(IF(КръвноНаляганеИЗахар[[#This Row],[Ниво]]=0,\"\",IF(КръвноНаляганеИЗахар[[#This Row],[Ниво]]<=ГНиска,\"Ниска\",IF(AND(КръвноНаляганеИЗахар[[#This Row],[Ниво]]>ГНиска,КръвноНаляганеИЗахар[[#This Row],[Ниво]]<ГВисока),\"Нормална\",\"Висока\"))), \"\")","v":"Нормална"},"Вземайте лекарство за кръвно налягане по време на хранене"]
[null,"Средни стойности",null,null,{"$f":"SUBTOTAL(101,КръвноНаляганеИЗахар[Систолично])","v":133},{"$f":"SUBTOTAL(101,КръвноНаляганеИЗахар[Диастолично])","v":{"v":82.33333333333333,"d":"82"}},{"$f":"SUBTOTAL(101,КръвноНаляганеИЗахар[Пулс])","v":{"v":72.33333333333333,"d":"72"}},{"$f":"SUBTOTAL(101,КръвноНаляганеИЗахар[Кръвна захар])","v":{"v":103.33333333333333,"d":"103"}}]